fUST/lending_fUST_20241001
["ID","MTS","AMOUNT","RATE_DAILY","PERIOD"]
[339623994,1727766640934,-434.92763127,0.00015469,2]
[339623995,1727766640943,-500.0,0.00015469,2]
[339623996,1727766640955,-500.0,0.00015469,2]
[339623997,1727766640965,-500.0,0.00015469,2]
[339623998,1727766640974,-500.0,0.00015469,2]
[339623999,1727766640984,-500.0,0.00015469,2]
[339624000,1727766640993,-443.69036248,0.00015469,2]
[339624001,1727766641003,-500.0,0.00015469,2]
[339624002,1727766641012,-500.0,0.00015469,2]
[339624003,1727766641021,-350.0,0.00015469,2]
[339624004,1727766641032,-151.0,0.00015469,2]
[339624005,1727766641041,-151.0,0.00015469,2]
[339624006,1727766641050,-151.0,0.00015469,2]
[339624007,1727766641060,-151.0,0.00015469,2]
[339624008,1727766641069,-216.808541,0.00015469,2]
[339624009,1727766641079,-202.646764,0.00015469,2]
[339624010,1727766641088,-247.552621,0.00015469,2]
[339624011,1727766641098,-247.552621,0.00015469,2]
[339624012,1727766641107,-347.04816032,0.0001547,2]
[339624013,1727766641116,-69040.5149942,0.0001547,2]
[339624014,1727766641126,-147783.027615,0.0001547,2]
[339624015,1727766641135,-151.0,0.0001547,2]
[339624016,1727766641145,-168.557882,0.0001547,2]
[339624017,1727766641154,-151.0,0.0001547,2]
[339624018,1727766641163,-151.0,0.0001547,2]
[339624019,1727766641174,-247.552621,0.0001547,2]
[339624020,1727766641183,-247.552621,0.0001547,2]
[339624021,1727766641192,-500.53711529,0.00015473,2]
[339624022,1727766641206,-500.0,0.00015473,2]
[339624023,1727766641216,-500.0,0.00015473,2]
[339624024,1727766641225,-500.0,0.00015473,2]
[339624025,1727766641235,-500.0,0.00015473,2]
[339624026,1727766641247,-500.0,0.00015473,2]
[339624027,1727766641259,-265.91103857,0.00015473,2]
[339624028,1727766641269,-500.0,0.00015473,2]
[339624029,1727766641279,-168.19569675,0.00015473,2]
[339624030,1727766641290,-199.35690593,0.00015473,2]
[339624031,1727766641300,-161.35320097,0.00015473,2]
[339624032,1727766641309,-500.0,0.00015473,2]
[339624033,1727766641319,-500.0,0.00015473,2]
[339624034,1727766641329,-500.0,0.00015473,2]
[339624035,1727766641338,-182.49903814,0.00015473,2]
[339624036,1727766641348,-500.0,0.00015473,2]
[339624037,1727766641357,-500.0,0.00015473,2]
[339624038,1727766641366,-500.0,0.00015473,2]
[339624039,1727766641376,-197.97836138,0.00015473,2]
[339624040,1727766641385,-500.0,0.00015473,2]
[339624041,1727766641395,-500.0,0.00015473,2]
[339624042,1727766641405,-500.51937079,0.00015473,2]
[339624043,1727766641414,-500.0,0.00015473,2]
[339624044,1727766641424,-500.0,0.00015473,2]
[339624045,1727766641434,-647.93843106,0.00015473,2]
[339624046,1727766641443,-500.67140053,0.00015473,2]
[339624047,1727766641459,-500.0,0.00015473,2]
[339624048,1727766641469,-500.0,0.00015473,2]
[339624049,1727766641478,-500.14462205,0.00015473,2]
[339624050,1727766641488,-371.277712,0.00015473,2]
[339624051,1727766641497,-371.277712,0.00015473,2]
[339624052,1727766641506,-151.0,0.00015473,2]
[339624053,1727766641516,-234.031436,0.00015473,2]
[339624054,1727766641525,-234.031436,0.00015473,2]
[339624055,1727766641535,-151.0,0.00015473,2]
[339624056,1727766641544,-151.0,0.00015473,2]
[339624057,1727766641554,-151.0,0.00015473,2]
[339624058,1727766641563,-151.0,0.00015473,2]
[339624059,1727766641573,-195.774956,0.00015479,2]
[339624060,1727766641582,-151.0,0.00015479,2]
[339624061,1727766641593,-157.306913,0.00015479,2]
[339624062,1727766641602,-151.0,0.00015479,2]
[339624063,1727766641612,-151.0,0.00015479,2]
[339624064,1727766641622,-151.0,0.00015479,2]
[339624065,1727766641631,-946.328707,0.00015479,2]
[339624066,1727766641640,-151.0,0.00015479,2]
[339624067,1727766641650,-154.394769,0.00015479,2]
[339624068,1727766641659,-946.328707,0.00015479,2]
[339624069,1727766641668,-335.392331,0.00015479,2]
[339624070,1727766641677,-335.392331,0.00015479,2]
[339624071,1727766641686,-1759.041671,0.00015479,2]
[339624072,1727766641694,-1759.041671,0.00015479,2]
[339624073,1727766641705,-1759.041671,0.00015479,2]
[339624074,1727766641716,-1759.041671,0.00015479,2]
[339624075,1727766641725,-1974.707361,0.00015479,2]
[339624076,1727766641735,-1974.707361,0.00015479,2]
[339624077,1727766641744,-1974.707361,0.00015479,2]
[339624078,1727766641754,-1974.707361,0.00015479,2]
[339624079,1727766641763,-1038.517018,0.00015479,2]
[339624080,1727766641772,-1038.517018,0.00015479,2]
[339624081,1727766641782,-151.0,0.00015479,2]
[339624082,1727766641791,-1038.517018,0.00015479,2]
[339624083,1727766641800,-1038.517018,0.00015479,2]
[339624084,1727766641809,-371.277712,0.00015479,2]
[339624085,1727766641818,-371.277712,0.00015479,2]
[339624086,1727766641827,-151.0,0.00015479,2]
[339624087,1727766641836,-234.031436,0.00015479,2]
[339624088,1727766641846,-234.031436,0.00015479,2]
[339624089,1727766641855,-151.0,0.00015479,2]
[339624090,1727766641865,-151.0,0.00015479,2]
[339624091,1727766641875,-151.0,0.00015479,2]
[339624092,1727766641884,-151.0,0.00015479,2]
[339624093,1727766641893,-1000.0,0.00015479,2]
[339624094,1727766641902,-1000.0,0.00015479,4]
[339624095,1727766641911,-1000.0,0.00015479,6]
[339624096,1727766641921,-1000.0,0.00015479,8]
[339624097,1727766641932,-1000.0,0.00015479,10]
[339624098,1727766641942,-602.28,0.00015479,12]
[339624099,1727766641954,-151.0,0.00015479,2]
[339624100,1727766641964,-8437.06733659,0.0001548,2]
[339624101,1727766641978,-772.6893405,0.0001548,2]
[339624102,1727766641989,-740.58,0.0001548,2]
[339624103,1727766642001,-742.855974,0.0001548,2]
[339624104,1727766642012,-725.795,0.0001548,2]
[339624105,1727766642024,-1581.8952578,0.0001548,2]
[339624106,1727766642048,-500.0,0.00015468,2]
[339624107,1727766642058,-5882.43780182,0.0001548,2]
[339624144,1727766643130,-247.552621,0.00015469,2]
[339624145,1727766643140,-247.552621,0.00015469,2]
[339624146,1727766643150,-247.552621,0.0001547,2]
[339624147,1727766643160,-247.552621,0.00015479,2]
[339624148,1727766643170,-2211.539516,0.0001548,2]
[339624189,1727767298107,500.0,0.00021917,120]
[339624190,1727767298631,500.0,0.00021917,120]
[339624191,1727767298739,500.0,0.00021917,120]
[339624192,1727767298883,500.0,0.00021917,120]
[339624193,1727767299260,500.0,0.00021917,120]
[339624194,1727767299641,577.16301716,0.00021917,120]
[339624198,1727767458390,2803.0,0.00022,120]
[339624231,1727767581756,500.0,0.00021999,120]
[339624265,1727767586641,500.0,0.00021999,120]
[339624268,1727767586817,500.76809479,0.00021999,120]
[339624272,1727767587376,585.61,0.00021999,120]
[339624290,1727767589048,500.0,0.00021999,120]
[339624297,1727767589630,482.75950463,0.00021999,120]
[339624307,1727767590688,627.09,0.00021999,120]
[339624311,1727767591052,500.0,0.00021999,120]
[339624316,1727767593679,500.0,0.00021999,120]
[339624317,1727767594012,500.0,0.00021999,120]
[339624318,1727767594135,500.59901102,0.00021999,120]
[339624320,1727767594757,500.0,0.00021999,120]
[339624322,1727767595034,500.0,0.00021999,120]
[339624326,1727767596383,500.0,0.00021999,120]
[339624327,1727767597568,500.0,0.00021999,120]
[339624328,1727767597759,594.8,0.00021999,120]
[339624329,1727767598006,500.0,0.00021999,120]
[339624330,1727767599431,938.77,0.00021999,120]
[339624331,1727767599729,500.0,0.00021999,120]
[339624333,1727767602394,500.0,0.00021999,120]
[339624345,1727767604734,501.65000862,0.00021999,120]
[339624350,1727767605354,500.0,0.00021999,120]
[339624361,1727767607196,735.49,0.00021999,120]
[339624364,1727767608174,500.0,0.00021999,120]
[339624371,1727767609006,500.0,0.00021999,120]
[339624378,1727767610572,500.0,0.00021999,120]
[339624389,1727767612689,502.08649452,0.00021999,120]
[339624391,1727767613137,500.0,0.00021999,120]
[339624394,1727767614775,500.0,0.00021999,120]
[339624407,1727767616136,500.42135395,0.00021999,120]
[339624421,1727767618131,500.0,0.00021999,120]
[339624437,1727767620186,1078.98,0.00021999,120]
[339624446,1727767621075,500.0,0.00021999,120]
[339624449,1727767621304,500.0,0.00021999,120]
[339624451,1727767621518,587.84,0.00021999,120]
[339624452,1727767621647,500.0,0.00021999,120]
[339624454,1727767623046,500.0,0.00021999,120]
[339624457,1727767623685,500.0,0.00021999,120]
[339624462,1727767625958,500.0,0.00021999,120]
[339624487,1727767631628,500.0,0.00021999,120]
[339624489,1727767632930,500.33595791,0.00021999,120]
[339624490,1727767633511,500.0,0.00021999,120]
[339624492,1727767633757,500.0,0.00021999,120]
[339624503,1727767637315,500.0,0.00021999,120]
[339624505,1727767638120,500.0,0.00021999,120]
[339624506,1727767640221,500.0,0.00021999,120]
[339624507,1727767641160,500.0,0.00021999,120]
[339624508,1727767641670,500.0,0.00021999,120]
[339624509,1727767642599,500.1348245,0.00021999,120]
[339624512,1727767646202,500.0,0.00021999,120]
[339624513,1727767647022,500.0,0.00021999,120]
[339624514,1727767647267,500.0,0.00021999,120]
[339624515,1727767648178,500.0,0.00021999,120]
[339624524,1727767651381,500.0,0.00021999,120]
[339624526,1727767651441,500.0,0.00021999,120]
[339624534,1727767655450,500.0,0.00021999,120]
[339624535,1727767656819,500.0,0.00021999,120]
[339624536,1727767658787,606.14,0.00021999,120]
[339624537,1727767659008,500.0,0.00021999,120]
[339624538,1727767659605,500.0,0.00021999,120]
[339624539,1727767661198,500.0,0.00021999,120]
[339624540,1727767662519,500.0,0.00021999,120]
[339624541,1727767663241,253.8184013,0.00021999,120]
[339624542,1727767663508,500.0,0.00021999,120]
[339624543,1727767664850,500.0,0.00021999,120]
[339624546,1727767665611,500.0,0.00021999,120]
[339624547,1727767667226,500.0,0.00021999,120]
[339624552,1727767668552,500.0,0.00021999,120]
[339624554,1727767668815,378.32477302,0.00021999,120]
[339624557,1727767672489,500.0,0.00021999,120]
[339624558,1727767672721,500.0,0.00021999,120]
[339624560,1727767673433,500.0,0.00021999,120]
[339624561,1727767674541,500.0,0.00021999,120]
[339624562,1727767675528,500.0,0.00021999,120]
[339624567,1727767678031,500.0,0.00021999,120]
[339624572,1727767679394,500.0,0.00021999,120]
[339624575,1727767680837,500.0,0.00021999,120]
[339624578,1727767682905,705.42,0.00021999,120]
[339624579,1727767684689,500.0,0.00021999,120]
[339624580,1727767685462,500.0,0.00021999,120]
[339624581,1727767686552,500.91999059,0.00021999,120]
[339624582,1727767689178,542.95,0.00021999,120]
[339624583,1727767689256,500.0,0.00021999,120]
[339624584,1727767690588,500.0,0.00021999,120]
[339624585,1727767691631,500.63965868,0.00021999,120]
[339624586,1727767692048,500.0,0.00021999,120]
[339624587,1727767692415,500.0,0.00021999,120]
[339624588,1727767694005,500.0,0.00021999,120]
[339624589,1727767695163,500.0,0.00021999,120]
[339624590,1727767695883,500.0,0.00021999,120]
[339624591,1727767696732,693.9,0.00021999,120]
[339624597,1727767698209,500.0,0.00021999,120]
[339624598,1727767699181,500.0,0.00021999,120]
[339624599,1727767700591,904.32,0.00021999,120]
[339624600,1727767700644,500.0,0.00021999,120]
[339624603,1727767704393,500.0,0.00021999,120]
[339624606,1727767705064,500.5341631,0.00021999,120]
[339624608,1727767706630,567.47,0.00021999,120]
[339624609,1727767707566,500.0,0.00021999,120]
[339624610,1727767708963,500.0,0.00021999,120]
[339624611,1727767711765,500.0,0.00021999,120]
[339624614,1727767713411,500.0,0.00021999,120]
[339624643,1727767718854,511.50874698,0.00021999,120]
[339624657,1727767720659,871.04,0.00021999,120]
[339624663,1727767721193,500.0,0.00021999,120]
[339624678,1727767723379,500.0,0.00021999,120]
[339624681,1727767724066,848.38,0.00021999,120]
[339624682,1727767724295,520.61597967,0.00021999,120]
[339624685,1727767724670,622.84,0.00021999,120]
[339624686,1727767725890,516.33562398,0.00021999,120]
[339624687,1727767726368,500.0,0.00021999,120]
[339624693,1727767727704,500.0,0.00021999,120]
[339624695,1727767727873,500.0,0.00021999,120]
[339624697,1727767728258,500.0,0.00021999,120]
[339624703,1727767729697,500.0,0.00021999,120]
[339624706,1727767730514,502.3038604,0.00021999,120]
[339624707,1727767733189,501.94623036,0.00021999,120]
[339624708,1727767734378,500.0,0.00021999,120]
[339624709,1727767736293,500.0,0.00021999,120]
[339624710,1727767736832,383.28211492,0.00021999,120]
[339624711,1727767736879,500.0,0.00021999,120]
[339624712,1727767737470,500.0,0.00021999,120]
[339624713,1727767738084,500.0,0.00021999,120]
[339624714,1727767738334,673.42,0.00021999,120]
[339624715,1727767738391,639.43,0.00021999,120]
[339624716,1727767738754,500.0,0.00021999,120]
[339624717,1727767740303,500.0,0.00021999,120]
[339624718,1727767741095,500.0,0.00021999,120]
[339624723,1727767742400,500.0,0.00021999,120]
[339624724,1727767743517,508.60503608,0.00021999,120]
[339624725,1727767743942,500.0,0.00021999,120]
[339624727,1727767746241,500.0,0.00021999,120]
[339624728,1727767746792,500.0,0.00021999,120]
[339624730,1727767748572,500.69759776,0.00021999,120]
[339624732,1727767748900,500.0,0.00021999,120]
[339624738,1727767751321,500.0,0.00021999,120]
[339624740,1727767752068,500.0,0.00021999,120]
[339624742,1727767752371,500.0,0.00021999,120]
[339624743,1727767752564,500.0,0.00021999,120]
[339624747,1727767753316,500.0,0.00021999,120]
[339624754,1727767755094,500.0,0.00021999,120]
[339624757,1727767755891,500.0,0.00021999,120]
[339624758,1727767755951,500.0,0.00021999,120]
[339624759,1727767756039,500.0,0.00021999,120]
[339624760,1727767756761,500.0,0.00021999,120]
[339624761,1727767758521,500.0,0.00021999,120]
[339624767,1727767759533,500.0,0.00021999,120]
[339624768,1727767759911,500.0,0.00021999,120]
[339624769,1727767761150,501.57781749,0.00021999,120]
[339624770,1727767762884,500.0,0.00021999,120]
[339624771,1727767762968,500.0,0.00021999,120]
[339624772,1727767763093,500.0,0.00021999,120]
[339624774,1727767763541,500.0,0.00021999,120]
[339624776,1727767763870,500.0,0.00021999,120]
[339624786,1727767766147,500.0,0.00021999,120]
[339624791,1727767766754,523.16194415,0.00021999,120]
[339624801,1727767768156,500.0,0.00021999,120]
[339624804,1727767768807,500.0,0.00021999,120]
[339624806,1727767769013,500.0,0.00021999,120]
[339624817,1727767770701,500.0,0.00021999,120]
[339624820,1727767771146,500.0,0.00021999,120]
[339624828,1727767772173,500.0,0.00021999,120]
[339624835,1727767773606,500.0,0.00021999,120]
[339624836,1727767773963,500.90208774,0.00021999,120]
[339624837,1727767775990,509.85767846,0.00021999,120]
[339624842,1727767777612,500.0,0.00021999,120]
[339624845,1727767778239,500.0,0.00021999,120]
[339624851,1727767779129,500.0,0.00021999,120]
[339624858,1727767781491,500.0,0.00021999,120]
[339624861,1727767782159,513.59,0.00021999,120]
[339624862,1727767782313,500.0,0.00021999,120]
[339624865,1727767782896,500.0,0.00021999,120]
[339624868,1727767783447,500.0,0.00021999,120]
[339624879,1727767784772,500.0,0.00021999,120]
[339624888,1727767787352,500.0,0.00021999,120]
[339624893,1727767790921,506.47685966,0.00021999,120]
[339624894,1727767791020,500.0,0.00021999,120]
[339624895,1727767791113,500.0,0.00021999,120]
[339624896,1727767791285,500.0,0.00021999,120]
[339624897,1727767791517,500.0,0.00021999,120]
[339624903,1727767793215,954.04,0.00021999,120]
[339624904,1727767793311,500.0,0.00021999,120]
[339624912,1727767795729,500.0,0.00021999,120]
[339624913,1727767796166,500.0,0.00021999,120]
[339624914,1727767796441,710.84,0.00021999,120]
[339624915,1727767801197,500.0,0.00021999,120]
[339624916,1727767802377,777.05,0.00021999,120]
[339624917,1727767805131,500.0,0.00021999,120]
[339624918,1727767805238,500.0,0.00021999,120]
[339624919,1727767805762,500.0,0.00021999,120]
[339624921,1727767806408,1138.76,0.00021999,120]
[339624922,1727767806464,500.0,0.00021999,120]
[339624925,1727767807503,635.59,0.00021999,120]
[339624927,1727767807646,500.0,0.00021999,120]
[339624929,1727767808085,873.62,0.00021999,120]
[339624941,1727767810620,500.0,0.00021999,120]
[339624942,1727767812253,500.0,0.00021999,120]
[339624943,1727767812649,500.0,0.00021999,120]
[339624950,1727767815408,500.0,0.00021999,120]
[339624954,1727767816372,500.0,0.00021999,120]
[339624955,1727767816895,500.0,0.00021999,120]
[339624956,1727767816974,500.0,0.00021999,120]
[339624957,1727767817362,500.0,0.00021999,120]
[339624958,1727767818549,721.76,0.00021999,120]
[339624959,1727767819063,500.0,0.00021999,120]
[339624960,1727767820214,500.0,0.00021999,120]
[339624961,1727767821469,500.0,0.00021999,120]
[339624962,1727767823074,500.0,0.00021999,120]
[339624963,1727767823722,892.84,0.00021999,120]
[339624970,1727767825866,500.0,0.00021999,120]
[339624973,1727767826898,500.0,0.00021999,120]
[339624976,1727767827340,500.0,0.00021999,120]
[339624982,1727767828680,500.0,0.00021999,120]
[339624985,1727767829187,500.0,0.00021999,120]
[339624986,1727767829337,743.65,0.00021999,120]
[339624988,1727767829523,500.0,0.00021999,120]
[339624997,1727767831739,500.0,0.00021999,120]
[339625005,1727767831900,899.65,0.00021999,120]
[339625019,1727767832002,500.0,0.00021999,120]
[339625032,1727767832190,500.0,0.00021999,120]
[339625047,1727767832371,500.0,0.00021999,120]
[339625049,1727767832732,500.0,0.00021999,120]
[339625050,1727767833932,500.0,0.00021999,120]
[339625051,1727767834657,1043.33,0.00021999,120]
[339625052,1727767835097,500.0,0.00021999,120]
[339625053,1727767836074,500.0,0.00021999,120]
[339625054,1727767837142,501.57977038,0.00021999,120]
[339625055,1727767837622,825.33,0.00021999,120]
[339625112,1727767838511,604.9,0.00021999,120]
[339625142,1727767839024,-166.6666674,0.00013699,2]
[339625143,1727767839033,-324.205433,0.00013699,2]
[339625144,1727767839044,-812.2891001,0.00013827,2]
[339625145,1727767839054,-157.0,0.000139,2]
[339625146,1727767839063,-12922.14150593,0.00013948,2]
[339625147,1727767839075,-2000.0,0.00013948,2]
[339625155,1727767840078,500.0,0.00021999,120]
[339625160,1727767840393,-3507.95091267,0.00013948,2]
[339625161,1727767840404,-13081.42785915,0.00014,2]
[339625162,1727767840413,-974.94462949,0.00014,2]
[339625163,1727767840423,-157.0,0.0001413,2]
[339625164,1727767840432,-157.0,0.0001437,2]
[339625165,1727767840441,-1335.05282564,0.00014375,2]
[339625166,1727767840450,-169.116464,0.00014424,2]
[339625167,1727767840461,-169.116464,0.00014432,2]
[339625168,1727767840473,-169.116464,0.0001444,2]
[339625169,1727767840482,-169.116464,0.00014448,2]
[339625170,1727767840491,-169.116464,0.00014456,2]
[339625171,1727767840503,-169.116464,0.00014464,2]
[339625172,1727767840512,-169.116464,0.00014472,2]
[339625173,1727767840521,-169.116464,0.0001448,2]
[339625174,1727767840530,-169.116464,0.00014488,2]
[339625175,1727767840541,-169.116464,0.00014496,2]
[339625176,1727767840552,-157.0,0.000146,2]
[339625177,1727767840562,-306.0,0.00014878,2]
[339625178,1727767840571,-153.0,0.00014978,2]
[339625179,1727767840582,-5000.0,0.00015,2]
[339625180,1727767840592,-153.0,0.00015078,2]
[339625181,1727767840602,-157.0,0.000153,2]
[339625182,1727767840612,-5766.11360257,0.00015336,2]
[339625183,1727767840624,-289.84750774,0.0001537,2]
[339625184,1727767840634,-501.70684979,0.00015459,2]
[339625185,1727767840643,-12182.090124,0.0001546,2]
[339625186,1727767840654,-25862.0298327,0.0001546,2]
[339625187,1727767840664,-36546.2703719,0.0001547,2]
[339625188,1727767840674,-12432.96084742,0.0001547,2]
[339625189,1727767840688,-65153.12865068,0.0001547,2]
[339625190,1727767840699,-151.0,0.0001547,2]
[339625191,1727767840708,-238.100844,0.0001547,2]
[339625192,1727767840718,-151.0,0.0001547,2]
[339625193,1727767840728,-151.0,0.0001547,2]
[339625194,1727767840738,-151.0,0.0001547,2]
[339625195,1727767840747,-946.328707,0.0001547,2]
[339625196,1727767840757,-946.328707,0.0001547,2]
[339625197,1727767840767,-500.0,0.00015472,2]
[339625198,1727767840777,-500.0,0.00015472,2]
[339625199,1727767840787,-500.0,0.00015472,2]
[339625200,1727767840798,-500.0,0.00015472,2]
[339625201,1727767840809,-500.0,0.00015472,2]
[339625202,1727767840819,-500.0,0.00015472,2]
[339625203,1727767840828,-290.91574214,0.00015472,2]
[339625204,1727767840838,-500.0,0.00015472,2]
[339625205,1727767840848,-500.0,0.00015472,2]
[339625206,1727767840857,-227.2755966,0.00015472,2]
[339625207,1727767840867,-500.0,0.00015472,2]
[339625208,1727767840878,-500.0,0.00015472,2]
[339625209,1727767840887,-500.0,0.00015472,2]
[339625210,1727767840896,-500.0,0.00015472,2]
[339625211,1727767840906,-500.0,0.00015472,2]
[339625212,1727767840915,-374.32444236,0.00015473,2]
[339625213,1727767840925,-500.53711529,0.00015473,2]
[339625214,1727767840934,-500.0,0.00015473,2]
[339625215,1727767840944,-500.0,0.00015473,2]
[339625216,1727767840953,-500.0,0.00015473,2]
[339625217,1727767840962,-182.49903814,0.00015473,2]
[339625218,1727767840972,-500.0,0.00015473,2]
[339625219,1727767840983,-500.0,0.00015473,2]
[339625220,1727767840993,-500.0,0.00015473,2]
[339625221,1727767841003,-500.0,0.00015473,2]
[339625222,1727767841012,-197.97836138,0.00015473,2]
[339625223,1727767841022,-500.51937079,0.00015473,2]
[339625224,1727767841031,-500.67140053,0.00015473,2]
[339625225,1727767841041,-500.0,0.00015473,2]
[339625226,1727767841050,-500.0,0.00015473,2]
[339625227,1727767841059,-500.0,0.00015473,2]
[339625228,1727767841070,-1000.0,0.00015478,2]
[339625229,1727767841080,-1000.0,0.00015478,4]
[339625230,1727767841091,-1000.0,0.00015478,6]
[339625231,1727767841102,-1000.0,0.00015478,8]
[339625232,1727767841111,-1000.0,0.00015478,10]
[339625233,1727767841121,-602.28,0.00015478,12]
[339625234,1727767841131,-500.0,0.00015479,2]
[339625235,1727767841141,-500.0,0.00015479,2]
[339625236,1727767841151,-618.0471665,0.00015479,2]
[339625237,1727767841161,-500.0,0.00015479,2]
[339625238,1727767841171,-187.11371925,0.00015479,2]
[339625239,1727767841180,-154.44934189,0.00015479,2]
[339625240,1727767841190,-500.0,0.00015479,2]
[339625241,1727767841201,-500.0,0.00015479,2]
[339625242,1727767841211,-500.0,0.00015479,2]
[339625243,1727767841221,-500.0,0.00015479,2]
[339625244,1727767841231,-500.0,0.00015479,2]
[339625245,1727767841241,-523.5807609,0.00015479,2]
[339625246,1727767841251,-482.00249284,0.00015479,2]
[339625247,1727767841261,-280.47828938,0.00015479,2]
[339625248,1727767841271,-264.87735707,0.00015479,2]
[339625249,1727767841281,-500.0,0.00015479,2]
[339625250,1727767841290,-238.10710874,0.00015479,2]
[339625251,1727767841300,-500.0,0.00015479,2]
[339625252,1727767841310,-500.0,0.00015479,2]
[339625253,1727767841320,-153708.8195049,0.0001548,2]
[339625254,1727767841330,-152.003829,0.0001548,2]
[339625255,1727767841340,-151.221556,0.0001548,2]
[339625256,1727767841351,-151.0,0.0001548,2]
[339625257,1727767841361,-151.0,0.0001548,2]
[339625258,1727767841372,-151.0,0.0001548,2]
[339625259,1727767841382,-151.0,0.0001548,2]
[339625260,1727767841391,-151.0,0.0001548,2]
[339625261,1727767841400,-151.0,0.0001548,2]
[339625262,1727767841410,-151.742163,0.0001548,2]
[339625263,1727767841420,-151.0,0.0001548,2]
[339625264,1727767841430,-151.4436,0.0001548,2]
[339625265,1727767841440,-151.0,0.0001548,2]
[339625266,1727767841450,-151.0,0.0001548,2]
[339625267,1727767841460,-151.0,0.0001548,2]
[339625268,1727767841470,-151.0,0.0001548,2]
[339625269,1727767841481,-151.0,0.0001548,2]
[339625270,1727767841493,-151.0,0.0001548,2]
[339625271,1727767841503,-151.0,0.0001548,2]
[339625272,1727767841514,-946.328707,0.0001548,2]
[339625273,1727767841524,-289.84750771,0.00015507,2]
[339625274,1727767841534,-1000.0,0.0001561,2]
[339625275,1727767841544,-961.60293191,0.0001561,2]
[339625276,1727767841555,-1000.0,0.0001561,2]
[339625277,1727767841564,-393.91540894,0.0001561,2]
[339625278,1727767841575,-1000.0,0.0001561,2]
[339625279,1727767841585,-710.08588892,0.0001561,2]
[339625280,1727767841595,-500.2868768,0.0001561,2]
[339625281,1727767841604,-1001.85962242,0.0001561,2]
[339625282,1727767841614,-644.73415823,0.0001561,2]
[339625283,1727767841628,-1000.0,0.0001561,2]
[339625284,1727767841638,-289.84750771,0.00015645,2]
[339625285,1727767841648,-12182.090124,0.00015744,2]
[339625286,1727767841659,-25862.0298327,0.00015744,2]
[339625287,1727767841670,-151.0,0.00015744,2]
[339625288,1727767841681,-153.305633,0.00015744,2]
[339625289,1727767841691,-151.0,0.00015744,2]
[339625290,1727767841701,-151.0,0.00015744,2]
[339625291,1727767841710,-946.328707,0.00015744,2]
[339625292,1727767841720,-276.08960001,0.00015747,2]
[339625293,1727767841730,-1130.91853965,0.00015747,2]
[339625294,1727767841741,-1500.0,0.00015747,2]
[339625295,1727767841750,-1500.0,0.00015747,2]
[339625296,1727767841760,-151.0,0.00015754,2]
[339625297,1727767841770,-151.0,0.00015754,2]